fUST/lending_fUST_20251231
["ID","MTS","AMOUNT","RATE_DAILY","PERIOD"]
[400160991,1767161443987,-1500.0,0.00014795,2]
[400160992,1767161443997,-1500.0,0.00014795,2]
[400160993,1767161444006,-1500.0,0.00014795,2]
[400160994,1767161444015,-1500.0,0.00014795,2]
[400160995,1767161444025,-1633.65989049,0.00014795,2]
[400160996,1767161444034,-1500.0,0.00014795,2]
[400160998,1767161444044,-1136.51090941,0.00014795,2]
[400160999,1767161444053,-1500.0,0.00014795,2]
[400161000,1767161444063,-1500.0,0.00014795,2]
[400161001,1767161444072,-342.96834915,0.00014795,2]
[400161002,1767161444081,-1605.24677987,0.00014795,2]
[400161003,1767161444091,-1978.35295088,0.00014916,2]
[400161004,1767161444101,-2000.0,0.00014916,2]
[400161005,1767161444111,-1613.45090759,0.00014916,2]
[400161006,1767161444120,-2000.0,0.00014916,2]
[400161007,1767161444129,-535.5590815,0.00014916,2]
[400161008,1767161444139,-2000.0,0.00014916,2]
[400161009,1767161444148,-2000.0,0.00014916,2]
[400161010,1767161444157,-2000.0,0.00014916,2]
[400161011,1767161444167,-2000.0,0.00014916,2]
[400161012,1767161444176,-2000.0,0.00014916,2]
[400161013,1767161444185,-185.55855892,0.00014916,2]
[400161014,1767161444195,-2000.0,0.00014916,2]
[400161015,1767161444204,-2000.0,0.00014916,2]
[400161016,1767161444213,-2000.0,0.00014916,2]
[400161017,1767161444223,-2000.0,0.00014916,2]
[400161018,1767161444232,-2000.0,0.00014916,2]
[400161019,1767161444241,-2000.0,0.00014916,2]
[400161020,1767161444250,-2000.0,0.00014916,2]
[400161021,1767161444260,-1318.87701711,0.00014916,2]
[400161022,1767161444269,-2000.0,0.00014916,2]
[400161023,1767161444279,-2000.0,0.00014916,2]
[400161024,1767161444288,-931.23584985,0.00014916,2]
[400161025,1767161444298,-2000.0,0.00014916,2]
[400161026,1767161444307,-2000.0,0.00014916,2]
[400161027,1767161444317,-100000.0,0.00015028,2]
[400161028,1767161444326,-4781.23,0.00015049,2]
[400161029,1767161444336,-864.0,0.00015072,2]
[400161030,1767161444345,-206.71458418,0.00015111,2]
[400161031,1767161444355,-1200.0,0.00015316,2]
[400161032,1767161444364,-468.3105326,0.00015318,2]
[400161033,1767161444374,-10682.31729811,0.00015326,2]
[400161034,1767161444383,-250.0,0.00015326,2]
[400161035,1767161444393,-909.51288327,0.00015342,2]
[400161036,1767161444402,-2000.0,0.00015342,2]
[400161037,1767161444411,-2000.0,0.00015342,2]
[400161038,1767161444421,-503.1340869,0.00015342,2]
[400161039,1767161444431,-402.01463508,0.00015342,2]
[400161040,1767161444440,-288.21762562,0.00015342,2]
[400161041,1767161444449,-2000.0,0.00015342,2]
[400161042,1767161444459,-157.67215419,0.00015342,2]
[400161043,1767161444468,-682.49603851,0.00015342,2]
[400161044,1767161444478,-1655.66749295,0.00015342,2]
[400161045,1767161444488,-2000.0,0.00015342,2]
[400161046,1767161444497,-2000.0,0.00015342,2]
[400161047,1767161444507,-2000.0,0.00015342,2]
[400161048,1767161444516,-2000.0,0.00015342,2]
[400161049,1767161444526,-922.85192268,0.00015342,2]
[400161050,1767161444535,-2000.0,0.00015342,2]
[400161051,1767161444545,-2000.0,0.00015342,2]
[400161052,1767161444556,-2018.84773542,0.00015342,2]
[400161053,1767161444567,-2000.0,0.00015342,2]
[400161054,1767161444576,-2000.0,0.00015342,2]
[400161055,1767161444585,-2000.0,0.00015342,2]
[400161056,1767161444595,-1636.69571136,0.00015342,2]
[400161057,1767161444605,-2000.0,0.00015342,2]
[400161058,1767161444614,-1510.33134929,0.00015342,2]
[400161059,1767161444624,-2000.0,0.00015342,2]
[400161060,1767161444634,-1504.98936626,0.00015342,2]
[400161061,1767161444643,-1718.16061512,0.00015342,2]
[400161062,1767161444653,-2000.0,0.00015342,2]
[400161063,1767161444664,-1104.13585388,0.00015342,2]
[400161064,1767161444673,-2000.0,0.00015342,2]
[400161065,1767161444682,-2000.0,0.00015342,2]
[400161066,1767161444692,-2000.0,0.00015342,2]
[400161067,1767161444702,-2000.0,0.00015342,2]
[400161068,1767161444711,-1793.14415046,0.00015342,2]
[400161069,1767161444721,-500.0,0.00015342,2]
[400161070,1767161444731,-2000.0,0.00015342,2]
[400161071,1767161444741,-2000.0,0.00015342,2]
[400161072,1767161444751,-2000.0,0.00015342,2]
[400161073,1767161444761,-1009.61748521,0.00015342,2]
[400161074,1767161444770,-2000.0,0.00015342,2]
[400161075,1767161444780,-915.94669576,0.00015342,2]
[400161076,1767161444794,-2000.0,0.00015342,2]
[400161077,1767161444804,-1165.86238698,0.00015342,2]
[400161078,1767161444813,-1504.79599952,0.00015342,2]
[400161079,1767161444823,-2000.0,0.00015342,2]
[400161080,1767161444832,-2000.0,0.00015342,2]
[400161081,1767161444842,-823.0,0.00015385,2]
[400161082,1767161444852,-2260.55819049,0.00015464,2]
[400161083,1767161444861,-2015.47786714,0.00015464,2]
[400161084,1767161444871,-2500.0,0.00015464,2]
[400161085,1767161444881,-2500.0,0.00015464,2]
[400161086,1767161444891,-2500.0,0.00015464,2]
[400161087,1767161444901,-2500.0,0.00015464,2]
[400161088,1767161444911,-2500.0,0.00015464,2]
[400161089,1767161445026,-1349.32071924,0.00015464,2]
[400161090,1767161445036,-503.81920107,0.00015464,2]
[400161091,1767161445046,-2500.0,0.00015464,2]
[400161092,1767161445055,-2500.0,0.00015464,2]
[400161093,1767161445065,-2500.0,0.00015464,2]
[400161094,1767161445074,-1500.0,0.00015464,2]
[400161095,1767161445084,-2500.0,0.00015464,2]
[400161096,1767161445098,-1000.0,0.00015464,2]
[400161097,1767161445114,-2500.0,0.00015464,2]
[400161098,1767161445123,-1000.0,0.00015464,2]
[400161099,1767161445133,-2500.0,0.00015464,2]
[400161100,1767161445143,-5578.1,0.00015628,2]
[400161101,1767161445152,-456.27884985,0.00015657,2]
[400161102,1767161445162,-1508.97595015,0.00015864,2]
[400161103,1767161445171,-1005.31532944,0.0001589,2]
[400161104,1767161445181,-651.60877791,0.0001589,2]
[400161105,1767161445191,-500.0,0.0001589,2]
[400161106,1767161445201,-537.58100831,0.0001589,2]
[400161107,1767161445211,-2500.0,0.0001589,2]
[400161108,1767161445221,-550.74198848,0.0001589,2]
[400161109,1767161445230,-386.3706875,0.0001589,2]
[400161110,1767161445240,-503.64865922,0.0001589,2]
[400161111,1767161445250,-574.09930708,0.0001589,2]
[400161112,1767161445259,-1500.0,0.0001589,2]
[400161113,1767161445269,-504.59975832,0.0001589,2]
[400161114,1767161445279,-1508.82384523,0.0001589,2]
[400161115,1767161445289,-480.71714518,0.0001589,2]
[400161116,1767161445298,-500.0,0.0001589,2]
[400161117,1767161445307,-500.0,0.0001589,2]
[400161118,1767161445316,-2500.0,0.0001589,2]
[400161119,1767161445326,-695.14400231,0.0001589,2]
[400161120,1767161445335,-2500.0,0.0001589,2]
[400161121,1767161445345,-777.52543131,0.0001589,2]
[400161122,1767161445355,-1534.26049156,0.0001589,2]
[400161123,1767161445364,-903.04207638,0.0001589,2]
[400161124,1767161445374,-418.31768676,0.0001589,2]
[400161125,1767161445384,-379.37902934,0.0001589,2]
[400161126,1767161445393,-1535.35417784,0.0001589,2]
[400161127,1767161445403,-3000.0,0.00016012,2]
[400161128,1767161445413,-3000.0,0.00016012,2]
[400161129,1767161445423,-3000.0,0.00016012,2]
[400161130,1767161445434,-3000.0,0.00016012,2]
[400161131,1767161445444,-3000.0,0.00016012,2]
[400161132,1767161445453,-3000.0,0.00016012,2]
[400161133,1767161445464,-3005.99987486,0.00016012,2]
[400161134,1767161445474,-3000.0,0.00016012,2]
[400161135,1767161445483,-3000.0,0.00016012,2]
[400161136,1767161445493,-360.16624078,0.00016012,2]
[400161137,1767161445502,-3000.0,0.00016012,2]
[400161138,1767161445512,-6374.97,0.00016206,2]
[400161139,1767161445521,-500.0,0.00016438,2]
[400161140,1767161445531,-495.78642928,0.00016438,2]
[400161141,1767161445541,-1383.15755431,0.00016438,2]
[400161142,1767161445551,-3000.0,0.00016438,2]
[400161143,1767161445566,-3000.0,0.00016438,2]
[400161144,1767161445576,-468.3105326,0.0001646,2]
[400161145,1767161445585,-200.0,0.00016473,2]
[400161146,1767161445595,-3500.0,0.0001656,2]
[400161147,1767161445607,-3007.10850414,0.0001656,2]
[400161148,1767161445617,-3500.0,0.0001656,2]
[400161149,1767161445629,-3076.89571839,0.0001656,2]
[400161150,1767161445639,-3500.0,0.0001656,2]
[400161151,1767161445649,-3500.0,0.0001656,2]
[400161152,1767161445659,-3500.0,0.0001656,2]
[400161153,1767161445669,-3500.0,0.0001656,2]
[400161154,1767161445678,-3500.0,0.0001656,2]
[400161155,1767161445688,-1000.0,0.00016579,2]
[400161156,1767161445698,-7171.84,0.00016682,2]
[400161157,1767161445708,-1152.0,0.00016896,2]
[400161158,1767161445717,-3500.0,0.00016986,2]
[400161159,1767161445727,-3500.0,0.00016986,2]
[400161160,1767161445737,-347.53001016,0.00017108,2]
[400161161,1767161445747,-4000.0,0.00017108,2]
[400161162,1767161445757,-2030.88192264,0.00017108,2]
[400161163,1767161445766,-4000.0,0.00017108,2]
[400161164,1767161445777,-1170.57654237,0.00017108,2]
[400161165,1767161445787,-4000.0,0.00017108,2]
[400161166,1767161445796,-3017.91360693,0.00017108,2]
[400161167,1767161445806,-7968.71,0.00017257,2]
[400161168,1767161445815,-1325.14325194,0.00017534,2]
[400161169,1767161445825,-4000.0,0.00017534,2]
[400161170,1767161445835,-422.38060374,0.00017656,2]
[400161171,1767161445845,-3508.31856485,0.00017656,2]
[400161172,1767161445855,-2968.24952751,0.00017656,2]
[400161173,1767161445866,-516.66869762,0.00017657,2]
[400161174,1767161445876,-8846.91277791,0.000178,3]
[400161175,1767161445886,-186.0,0.00018006,2]
[400161176,1767161445896,-999.0,0.0001802,2]
[400161177,1767161445906,-1000.0,0.00018237,2]
[400161178,1767161445916,-244.0,0.00018237,2]
[400161179,1767161445925,-8846.86,0.00018423,3]
[400161180,1767161445935,-4947.0,0.00018531,2]
[400161181,1767161445944,-1593.0,0.00018555,2]
[400161182,1767161445954,-4947.0,0.00018558,2]
[400161183,1767161445964,-4947.0,0.00018663,2]
[400161184,1767161445973,-4947.0,0.00018722,2]
[400161185,1767161445983,-4947.0,0.00018723,2]
[400161186,1767161445992,-4947.0,0.00018724,2]
[400161187,1767161446001,-409.13134682,0.00018736,2]
[400161188,1767161446012,-409.3356058,0.00018736,2]
[400161189,1767161446022,-409.33581007,0.00018736,2]
[400161190,1767161446032,-4947.0,0.00018873,2]
[400161191,1767161446041,-1419.12334533,0.00018873,2]
[400161192,1767161446051,-409.13318904,0.00018877,2]
[400161193,1767161446060,-204.87237042,0.00018877,2]
[400161195,1767161446070,-302.90913937,0.000189,2]
[400161197,1767161446079,-4947.0,0.00018927,2]
[400161198,1767161446089,-4947.0,0.00018928,2]
[400161199,1767161446098,-4947.0,0.00018938,2]
[400161200,1767161446107,-4947.0,0.00018969,2]
[400161201,1767161446116,-10682.31729811,0.00019035,2]
[400161202,1767161446126,-4947.0,0.00019047,2]
[400161203,1767161446135,-6831.4225511,0.00019078,2]
[400161204,1767161446145,-302.90913937,0.00019089,2]
[400161205,1767161446154,-4947.0,0.00019091,2]
[400161206,1767161446164,-500.0,0.00019178,2]
[400161207,1767161446179,-500.0,0.00019178,2]
[400161208,1767161446188,-500.0,0.00019178,2]
[400161209,1767161446198,-500.0,0.00019178,2]
[400161210,1767161446207,-500.0,0.00019178,2]
[400161211,1767161446217,-500.0,0.00019178,2]
[400161212,1767161446226,-500.0,0.00019178,2]
[400161213,1767161446236,-500.0,0.00019178,2]
[400161214,1767161446246,-167.95184871,0.00019178,2]
[400161215,1767161446256,-150.0,0.00019178,2]
[400161216,1767161446268,-166.47,0.000192,2]
[400161217,1767161446278,-166.25,0.000192,2]
[400161218,1767161446288,-1380.56,0.000192,2]
[400161219,1767161446298,-14885.98,0.000192,2]
[400161220,1767161446308,-162.4,0.000192,2]
[400161221,1767161446317,-4947.0,0.00019229,2]
[400161222,1767161446327,-302.90913937,0.00019278,2]
[400161223,1767161446337,-4947.0,0.00019301,2]
[400161225,1767161446346,-300.0,0.00019315,2]
[400161227,1767161446356,-4947.0,0.00019348,2]
[400161229,1767161446365,-4947.0,0.00019368,2]
[400161230,1767161446375,-4947.0,0.00019377,2]
[400161231,1767161446384,-450.0,0.00019452,2]
[400161232,1767161446393,-206.71458418,0.00019467,2]
[400161233,1767161446403,-302.90913937,0.00019467,2]
[400161234,1767161446412,-600.0,0.00019589,2]
[400161235,1767161446426,-4947.0,0.00019617,2]
[400161236,1767161446435,-302.90913937,0.00019656,2]
[400161237,1767161446445,-577.05854539,0.00019657,2]
[400161238,1767161446454,-406.55106819,0.00019726,2]
[400161239,1767161446463,-4947.0,0.00019727,2]
[400161240,1767161446472,-186.0,0.00019733,2]
[400161241,1767161446482,-4947.0,0.00019802,2]
[400161242,1767161446491,-454.36370906,0.00019845,4]
[400161243,1767161446500,-236.53722422,0.0001996,10]
[400161244,1767161446509,-210.23175629,0.0002,2]
[400161245,1767161446518,-633.0,0.0002,2]
[400161246,1767161446528,-2000.0,0.0002,7]
[400161247,1767161446537,-4947.0,0.00020022,2]
[400161248,1767161446547,-454.36370906,0.00020034,4]
[400161249,1767161446558,-1000.0,0.00020061,2]
[400161250,1767161446568,-492.0,0.00020061,2]
[400161251,1767161446577,-4947.0,0.00020063,2]
[400161252,1767161446587,-454.36370906,0.00020223,4]
[400161253,1767161446596,-4947.0,0.00020235,2]
[400161254,1767161446607,-4947.0,0.0002027,2]
[400161255,1767161446616,-514.84070869,0.00020336,2]
[400161256,1767161446626,-500.0,0.00020336,2]
[400161257,1767161446636,-151.50260762,0.00020336,2]
[400161258,1767161446646,-500.0,0.00020336,2]
[400161260,1767161446656,-151.0,0.00020336,2]
[400161262,1767161446665,-500.0,0.00020336,2]
[400161264,1767161446675,-500.0,0.00020336,2]
[400161265,1767161446686,-250.0,0.00020336,2]
[400161266,1767161446695,-500.0,0.00020336,2]
[400161267,1767161446705,-257.39953178,0.00020336,2]
[400161268,1767161446715,-500.0,0.00020336,2]
[400161269,1767161446724,-250.0,0.00020336,2]
[400161270,1767161446734,-250.0,0.00020336,2]
[400161271,1767161446743,-250.0,0.00020336,2]
[400161272,1767161446753,-500.0,0.00020336,2]
[400161273,1767161446763,-250.0,0.00020336,2]
[400161274,1767161446773,-500.0,0.00020336,2]
[400161275,1767161446783,-1000.0,0.00020336,2]
[400161276,1767161446792,-250.0,0.00020336,2]
[400161277,1767161446802,-250.0,0.00020336,2]
[400161278,1767161446811,-500.0,0.00020336,2]
[400161279,1767161446821,-500.0,0.00020336,2]
[400161280,1767161446831,-250.0,0.00020336,2]
[400161281,1767161446840,-500.0,0.00020336,2]
[400161282,1767161446850,-250.0,0.00020336,2]
[400161283,1767161446859,-151.0,0.00020336,2]
[400161284,1767161446869,-500.0,0.00020336,2]
[400161285,1767161446879,-151.0,0.00020336,2]
[400161286,1767161446889,-500.0,0.00020336,2]
[400161287,1767161446899,-151.0,0.00020336,2]
[400161288,1767161446909,-500.0,0.00020336,2]
[400161289,1767161446918,-151.0,0.00020336,2]
[400161290,1767161446928,-2436.59773527,0.00020336,2]
[400161291,1767161446938,-151.0,0.00020336,2]
[400161292,1767161446947,-151.0,0.00020336,2]
[400161293,1767161446957,-151.0,0.00020336,2]
[400161294,1767161446966,-151.0,0.00020336,2]
[400161295,1767161446975,-162.62076672,0.00020336,2]
[400161296,1767161446984,-151.0,0.00020336,2]
[400161297,1767161446994,-151.0,0.00020336,2]
[400161298,1767161447003,-151.0,0.00020336,2]
[400161299,1767161447012,-151.0,0.00020336,2]
[400161300,1767161447021,-151.0,0.00020336,2]
[400161301,1767161447031,-151.0,0.00020336,2]
[400161302,1767161447040,-151.0,0.00020336,2]
[400161303,1767161447049,-346.06439108,0.00020412,4]
[400161304,1767161447059,-2964.6554718,0.00020504,2]
[400161305,1767161447068,-341.52,0.00020659,30]
[400161306,1767161447079,-1041.66666667,0.00020749,2]
[400161307,1767161447088,-533.88981491,0.00020884,2]
[400161308,1767161447099,-151.0,0.00020884,2]
[400161309,1767161447109,-236.53722422,0.00021047,12]
[400161310,1767161447118,-6831.4225511,0.00021134,2]
[400161311,1767161447127,-553.64373807,0.00021432,2]
[400161312,1767161447136,-186.0,0.00021459,2]
[400161313,1767161447145,-683.03,0.00021643,30]
[400161314,1767161447155,-637.44839317,0.00021657,2]
[400161315,1767161447164,-1348.54,0.00021917,2]
[400161316,1767161447174,-793.64,0.00021917,2]
[400161317,1767161447184,-224.92658771,0.00021917,2]
[400161318,1767161447193,-500.0,0.00021917,2]
[400161319,1767161447202,-503.00820269,0.00021917,2]
[400161320,1767161447211,-500.0,0.00021917,2]
[400161321,1767161447220,-506.55449777,0.00021917,2]
[400161322,1767161447234,-500.0,0.00021917,2]
[400161323,1767161447244,-277.46495324,0.00021917,2]
[400161324,1767161447253,-181.58814641,0.00021917,2]
[400161325,1767161447263,-419.55533198,0.00021917,2]
[400161326,1767161447272,-3532.14,0.00021917,2]
[400161327,1767161447282,-500.0,0.00021917,2]
[400161328,1767161447292,-572.01801726,0.00021917,2]
[400161329,1767161447301,-500.0,0.00021917,2]
[400161330,1767161447310,-388.31492034,0.00021917,2]
[400161331,1767161447320,-150.0,0.00021918,2]
[400161332,1767161447330,-574.12855637,0.0002198,2]
[400161333,1767161447339,-859.02,0.00022,2]
[400161334,1767161447349,-160.73,0.00022,7]
[400161335,1767161447361,-14885.98,0.00022,2]
[400161336,1767161447370,-156.31477425,0.00022,7]
[400161337,1767161447379,-1000.0,0.00022067,10]
[400161338,1767161447389,-791.0,0.00022067,10]
[400161339,1767161447501,-236.53722422,0.00022134,13]
[400161340,1767161447511,-1348.54,0.00022191,2]
[400161341,1767161447520,-793.64,0.00022191,2]
[400161342,1767161447530,-422.18560449,0.00022191,2]
[400161343,1767161447539,-518.18840294,0.00022191,2]
[400161344,1767161447548,-510.62079878,0.00022191,2]
[400161345,1767161447559,-3532.14,0.00022191,2]
[400161346,1767161447568,-500.0,0.00022191,2]
[400161347,1767161447577,-562.74320886,0.00022191,2]
[400161348,1767161447587,-1364.0,0.00022299,2]
[400161349,1767161447596,-2158.274,0.00022299,2]
[400161350,1767161447607,-627.0,0.00022299,2]
[400161351,1767161447616,-298.0,0.00022299,2]
[400161352,1767161447626,-297.588,0.00022299,2]
[400161353,1767161447637,-416.0,0.00022299,2]
[400161354,1767161447646,-416.0,0.00022299,2]
[400161355,1767161447656,-5447.0,0.00022299,2]
[400161356,1767161447665,-160.0,0.00022411,3]
[400161357,1767161447675,-1348.54,0.00022465,2]
[400161358,1767161447686,-793.64,0.00022465,2]
[400161359,1767161447695,-3532.14,0.00022465,2]
[400161360,1767161447705,-500.0,0.00022465,2]
[400161361,1767161447715,-300.0,0.00022466,2]
[400161362,1767161447725,-166.25,0.000225,7]
[400161363,1767161447734,-1380.56,0.000225,14]
[400161364,1767161447744,-595.37131296,0.00022528,2]
[400161365,1767161447754,-166.61935698,0.00022575,7]
[400161366,1767161447763,-1024.55,0.00022627,30]
[400161367,1767161447773,-1348.54,0.00022739,2]
[400161368,1767161447783,-793.64,0.00022739,2]
[400161369,1767161447793,-3532.14,0.00022739,2]
[400161370,1767161447802,-472.89680193,0.00022739,2]
[400161371,1767161447812,-10682.31729811,0.00022745,2]
[400161372,1767161447822,-711603.04446346,0.0002277,2]
[400161373,1767161447831,-2000.0,0.00022857,7]
[400161374,1767161447841,-160.0,0.00022977,4]
[400161375,1767161447851,-3000.0,0.00023,2]
[400161376,1767161447860,-150.0,0.00023,10]
[400161377,1767161447870,-3000.0,0.0002301,2]
[400161378,1767161447879,-11598.2987195,0.00023013,2]
[400161379,1767161447889,-1348.54,0.00023013,2]
[400161380,1767161447898,-793.64,0.00023013,2]
[400161381,1767161447908,-3532.14,0.00023013,2]
[400161382,1767161447918,-425.96070951,0.00023014,2]
[400161383,1767161447927,-3000.0,0.0002302,2]
[400161384,1767161447940,-3000.0,0.0002303,2]
[400161385,1767161447949,-3000.0,0.0002304,2]
[400161386,1767161447959,-3000.0,0.0002305,2]
[400161387,1767161447968,-3000.0,0.0002306,2]
[400161388,1767161447977,-3000.0,0.0002307,2]
[400161389,1767161447987,-617.40005154,0.00023076,2]
[400161390,1767161447996,-3000.0,0.0002308,2]
[400161391,1767161448007,-3000.0,0.0002309,2]
[400161392,1767161448017,-3000.0,0.000231,2]
[400161393,1767161448026,-3000.0,0.0002311,2]
[400161394,1767161448035,-3000.0,0.0002312,2]
[400161395,1767161448044,-3000.0,0.0002313,2]
[400161396,1767161448053,-3000.0,0.0002314,2]
[400161397,1767161448063,-3000.0,0.0002315,2]
[400161398,1767161448072,-3000.0,0.0002316,2]
[400161399,1767161448081,-3000.0,0.0002317,2]
[400161400,1767161448091,-3000.0,0.0002318,2]
[400161401,1767161448100,-186.0,0.00023186,2]
[400161402,1767161448109,-3000.0,0.0002319,2]
[400161403,1767161448118,-6831.4225511,0.0002319,2]
[400161404,1767161448127,-3000.0,0.000232,2]
[400161405,1767161448136,-3000.0,0.0002321,2]
[400161406,1767161448145,-3000.0,0.0002322,2]
[400161407,1767161448156,-236.53722422,0.00023221,14]
[400161408,1767161448165,-3000.0,0.0002323,2]
[400161409,1767161448175,-3000.0,0.0002324,2]
[400161410,1767161448184,-3000.0,0.0002325,2]
[400161411,1767161448194,-3000.0,0.0002326,2]
[400161412,1767161448203,-3000.0,0.0002327,2]
[400161413,1767161448213,-3000.0,0.0002328,2]
[400161414,1767161448223,-1348.54,0.00023287,2]
[400161415,1767161448232,-793.64,0.00023287,2]
[400161416,1767161448241,-3532.14,0.00023287,2]
[400161417,1767161448250,-3000.0,0.0002329,2]
[400161418,1767161448259,-3000.0,0.000233,2]
[400161419,1767161448269,-3000.0,0.0002331,2]
[400161420,1767161448278,-5649.78407,0.0002332,2]
[400161421,1767161448287,-409.13134682,0.00023335,2]
[400161422,1767161448296,-409.3356058,0.00023335,2]
[400161423,1767161448305,-409.33581007,0.00023335,2]
[400161424,1767161448315,-179.38547431,0.00023424,2]
[400161425,1767161448324,-409.13318904,0.0002343,2]
[400161426,1767161448333,-204.87237042,0.0002343,2]
[400161427,1767161448343,-160.0,0.00023543,5]
[400161428,1767161448352,-1348.54,0.00023561,2]
[400161429,1767161448361,-793.64,0.00023561,2]
[400161430,1767161448370,-3532.14,0.00023561,2]
[400161431,1767161448379,-500.0,0.00023566,2]
[400161432,1767161448388,-228.57292632,0.00023584,2]
[400161433,1767161448398,-1366.07,0.0002361,30]
[400161434,1767161448407,-640.24385345,0.00023624,2]
[400161435,1767161448417,-697.83824094,0.00023657,2]
[400161436,1767161448426,-179.38547431,0.00023706,17]
[400161437,1767161448435,-206.71458418,0.00023823,2]
[400161438,1767161448444,-1348.54,0.00023835,2]
[400161439,1767161448453,-793.64,0.00023835,2]
[400161440,1767161448463,-3532.14,0.00023835,2]
[400161441,1767161448472,-200.90977335,0.00023835,2]
[400161442,1767161448482,-150.055,0.00023899,2]
[400161443,1767161448492,-150.142,0.00023899,2]
[400161444,1767161448501,-250.0,0.00023899,2]
[400161445,1767161448511,-260.56,0.00023899,2]
[400161446,1767161448520,-151.687,0.00023899,2]
[400161447,1767161448531,-503.29570748,0.000239,2]
[400161448,1767161448540,-503.2957074,0.000239,2]
[400161449,1767161448549,-503.2957074,0.000239,2]
[400161450,1767161448562,-503.2957074,0.000239,2]
[400161451,1767161448571,-503.2957074,0.000239,2]
[400161452,1767161448581,-503.2957074,0.000239,2]
[400161453,1767161448590,-503.2957074,0.000239,2]
[400161454,1767161448599,-503.2957074,0.000239,2]
[400161455,1767161448609,-503.2957074,0.000239,2]
[400161456,1767161448618,-179.38547431,0.00023987,32]
[400161457,1767161448628,-1348.54,0.00024109,2]
[400161458,1767161448640,-793.64,0.00024109,2]
[400161459,1767161448649,-3532.14,0.00024109,2]
[400161460,1767161448660,-160.0,0.00024109,6]
[400161461,1767161448670,-663.93287602,0.00024172,2]
[400161462,1767161448679,-179.38547431,0.00024269,48]
[400161463,1767161448690,-1000.0,0.00024274,10]
[400161464,1767161448700,-1000.0,0.00024274,10]
[400161465,1767161448710,-14885.98,0.000243,2]
[400161466,1767161448720,-236.53722422,0.00024309,16]
[400161467,1767161448729,-1348.54,0.00024383,2]
[400161468,1767161448738,-793.64,0.00024383,2]
[400161469,1767161448747,-3532.14,0.00024383,2]
[400161470,1767161448757,-160.73,0.000244,7]
[400161471,1767161448766,-179.38547431,0.00024551,63]
[400161472,1767161448776,-1707.58,0.00024594,30]
[400161473,1767161448786,-503.2957074,0.00024621,2]
[400161474,1767161448795,-1348.54,0.00024657,2]
[400161475,1767161448804,-793.64,0.00024657,2]
[400161476,1767161448814,-3532.14,0.00024657,2]
[400161477,1767161448823,-151.50509252,0.00024658,2]
[400161478,1767161448833,-380.0,0.00024658,2]
[400161479,1767161448843,-160.0,0.00024675,7]
[400161480,1767161448853,-162.4,0.000247,7]
[400161481,1767161448862,-8846.86,0.000247,3]
[400161482,1767161448872,-688.49839244,0.0002472,2]
[400161483,1767161448882,-200.0,0.00024797,2]
[400161484,1767161448892,-572154.19240379,0.00024798,2]
[400161485,1767161448902,-151.0,0.00024798,7]
[400161486,1767161448912,-151.0,0.00024798,7]
[400161487,1767161448921,-156.562526,0.00024798,7]
[400161488,1767161448930,-200.0,0.00024799,2]
[400161489,1767161448940,-155.015211,0.000248,7]
[400161490,1767161448949,-1328.264432,0.000248,7]
[400161491,1767161448958,-1328.264432,0.000248,7]
[400161492,1767161448968,-1328.264432,0.000248,7]
[400161493,1767161448977,-1328.264432,0.000248,7]
[400161494,1767161448986,-151.0,0.000248,7]
[400161495,1767161448995,-194.747586,0.000248,7]
[400161496,1767161449004,-194.747586,0.000248,7]
[400161497,1767161449013,-194.747586,0.000248,7]
[400161498,1767161449023,-194.747586,0.000248,7]
[400161499,1767161449032,-179.38547431,0.00024833,79]